bitfinex/quotes_ETHUSD_20250920
["timestamp","ask_amount","ask_price","bid_price","bid_amount"]
[1758395753071,0.2351,4484.3,4484.2,3.11143896]
[1758395756474,0.002,4484.3,4484.2,3.13373948]
[1758395756778,0.002,4484.3,4484.2,6.82873948]
[1758395756980,0.002,4484.3,4484.2,6.80643896]
[1758395768662,0.2455,4484.3,4484.2,6.80643896]
[1758395769652,0.002,4484.3,4484.2,6.80643896]
[1758395772464,0.002,4484.3,4484.2,7.44314848]
[1758395772696,0.002,4484.3,4484.2,10.67474848]
[1758395772994,1e-08,4484.4,4484.3,6.02200245]
[1758395773195,1e-08,4484.4,4484.3,6.25360245]
[1758395773404,1e-08,4484.4,4484.3,12.99511406]
[1758395790629,1e-08,4484.4,4484.3,12.99611406]
[1758395794233,1e-08,4484.4,4484.3,12.99631406]
[1758395796128,0.002,4484.7,4484.3,12.99631406]
[1758395796129,1e-08,4484.7,4484.6,3.02185327]
[1758395796349,1e-08,4484.7,4484.6,16.62154863]
[1758395796509,1e-08,4484.7,4484.6,18.79852654]
[1758395797010,1e-08,4484.7,4484.6,18.88788975]
[1758395801134,0.24070001,4484.7,4484.6,13.93249292]
[1758395801335,0.24070001,4484.7,4484.6,8.03921648]
[1758395801636,0.24070001,4484.7,4484.6,11.73321648]
[1758395803742,1e-08,4484.7,4484.6,11.73321648]
[1758395809686,1e-08,4484.7,4484.6,11.96641648]
[1758395811048,1e-08,4484.9,4484.7,6.02180355]
[1758395811262,1e-08,4484.9,4484.8,6.08413421]
[1758395811431,1e-08,4484.9,4484.8,9.29503668]
[1758395811632,1e-08,4484.9,4484.8,11.52479051]
[1758395812926,1e-08,4485.6,4485.5,3.02140586]
[1758395813130,1e-08,4485.6,4485.5,11.94554645]
[1758395813428,1e-08,4485.6,4485.5,12.17874645]
[1758395813739,1e-08,4485.6,4485.5,12.41274645]
[1758395818075,1e-08,4485.6,4485.5,12.85885018]
[1758395818578,1e-08,4485.6,4485.5,12.62565018]
[1758395820379,1e-08,4485.6,4485.5,12.85885018]
[1758395820969,1e-08,4485.6,4485.5,9.85885018]
[1758395822176,1e-08,4485.6,4485.5,9.62565018]
[1758395822484,1e-08,4485.6,4485.5,9.85885018]
[1758395823676,1e-08,4485.6,4485.5,9.62565018]
[1758395823893,1e-08,4485.6,4485.5,5.93165018]
[1758395824113,0.01,4486.9,4485.6,0.792]
[1758395824414,0.01,4486.9,4486.8,3.02075991]
[1758395824615,0.01,4486.9,4486.8,6.71475991]
[1758395825001,0.2392,4486.9,4486.8,6.71475991]
[1758395826072,0.01,4486.9,4486.8,6.71475991]
[1758395826273,0.2392,4486.9,4486.8,7.60911864]
[1758395826598,0.01,4486.9,4486.8,7.60911864]
[1758395827271,1e-08,4486.9,4486.8,7.60911864]
[1758395827472,1e-08,4486.9,4486.8,3.91511864]
[1758395827723,1e-08,4486.9,4486.8,7.60911864]
[1758395828582,1e-08,4486.9,4486.8,3.02075991]
[1758395828790,0.22920001,4486.9,4486.8,6.71775991]
[1758395833977,1e-08,4486.9,4486.8,6.71775991]
[1758395842876,1e-08,4486.9,4486.8,6.71875991]
[1758395843256,0.00200001,4486.9,4486.8,6.71875991]
[1758395852323,0.00200001,4486.9,4486.8,7.0426323]
[1758395855291,0.00200001,4486.9,4486.8,3.3456323]
[1758395855492,0.00200001,4486.9,4486.8,7.0396323]
[1758395860636,0.00200001,4486.9,4486.8,3.3456323]
[1758395860798,0.00200001,4486.9,4486.8,6.71475991]
[1758395860799,0.23780001,4486.9,4486.8,6.71475991]
[1758395863340,0.00200001,4486.9,4486.8,6.71475991]
[1758395873538,0.00200001,4486.9,4486.8,6.94905991]
[1758395874069,0.00200001,4486.9,4486.8,6.71475991]
[1758395874257,0.00200001,4486.9,4486.8,8.05954864]
[1758395874866,0.00200001,4486.9,4486.8,7.82524864]
[1758395875429,0.00200001,4486.9,4486.8,8.05954864]
[1758395875967,0.00200001,4486.9,4486.8,7.82524864]
[1758395879444,0.00200001,4486.9,4486.8,8.05954864]
[1758395880771,0.00200001,4486.9,4486.8,13.0092851]
[1758395882664,0.00200001,4486.9,4486.8,13.0102851]
[1758395883969,0.00200001,4486.9,4486.8,7.82624864]
[1758395888133,0.23780001,4486.9,4486.8,7.82624864]
[1758395888933,0.00200001,4486.9,4486.8,7.82624864]
[1758395889272,0.23780001,4486.9,4486.8,7.82624864]
[1758395891596,0.00200001,4486.9,4486.8,7.82624864]
[1758395891783,0.00200001,4486.9,4486.8,7.82524864]
[1758395894397,0.00200001,4486.9,4486.8,4.13224864]
[1758395894577,0.24530001,4486.9,4486.8,6.71475991]
[1758395897197,0.24530001,4486.9,4486.8,3.02175991]
[1758395897198,0.00200001,4486.9,4486.8,3.02175991]
[1758395897403,0.24530001,4486.9,4486.8,6.71475991]
[1758395899830,0.00200001,4486.9,4486.8,6.71475991]
[1758395900587,0.24530001,4486.9,4486.8,6.71475991]
[1758395901788,0.00200001,4486.9,4486.8,6.71475991]
[1758395902419,0.00200001,4486.9,4486.8,3.02175991]
[1758395902725,0.00200001,4486.9,4486.8,6.71475991]
[1758395904986,0.24530001,4486.9,4486.8,6.71375991]
[1758395905616,0.00200001,4486.9,4486.8,6.71375991]
[1758395909238,0.00200001,4486.9,4486.8,7.80071864]
[1758395909816,0.00200001,4486.9,4486.8,7.80171864]
[1758395912657,0.00200001,4486.9,4486.8,4.10871864]
[1758395912858,0.00200001,4486.9,4486.8,7.80071864]
[1758395915228,0.00200001,4486.9,4486.8,6.71375991]
[1758395915423,0.24530001,4486.9,4486.8,3.02175991]
[1758395915628,0.24530001,4486.9,4486.8,6.71375991]
[1758395917023,0.00200001,4486.9,4486.8,6.71375991]
[1758395926431,0.00200001,4486.9,4486.8,3.02175991]
[1758395926616,0.00200001,4486.9,4486.8,6.71375991]
[1758395931222,0.00200001,4486.9,4486.8,6.95265991]
[1758395931763,0.00200001,4486.9,4486.8,6.71375991]
[1758395933825,0.00200001,4486.9,4486.8,6.95265991]
[1758395934345,0.00200001,4486.9,4486.8,6.71375991]
[1758395947427,0.00200001,4486.9,4486.8,3.02175991]
[1758395947780,0.24320001,4486.9,4486.8,6.71375991]
[1758395948283,0.00200001,4486.9,4486.8,6.71375991]
[1758395948723,0.00200001,4486.9,4486.8,3.02175991]
[1758395948885,0.00200001,4486.9,4486.8,6.71375991]
[1758395954786,0.00200001,4486.9,4486.8,3.02175991]
[1758395955100,0.00200001,4486.9,4486.8,6.71375991]
[1758395961158,0.24290001,4486.9,4486.8,0.793]
[1758395961354,0.77710099,4486.9,4486.8,0.001]
[1758395961550,0.79210146,4486.9,4486.8,0.001]
[1758395961849,0.79210146,4486.9,4486.8,0.793]
[1758395962857,8.10492105,4486.9,4486.8,0.001]
[1758395963152,11.29875077,4486.9,4486.8,0.001]
[1758395963347,11.08992058,4486.9,4486.8,0.001]
[1758395963833,11.29855325,4486.9,4486.8,0.001]
[1758395964425,11.08992058,4486.9,4486.8,0.001]
[1758395967140,11.29823061,4486.9,4486.8,0.001]
[1758395967539,14.99123061,4486.9,4486.8,0.001]
[1758395971322,14.78292058,4486.9,4486.8,0.001]
[1758395972840,14.99095326,4486.9,4486.8,0.001]
[1758395974488,14.78292058,4486.9,4486.8,0.001]
[1758395977869,14.54202058,4486.9,4486.8,0.001]
[1758395980064,14.49202058,4486.9,4486.8,0.001]
[1758395985403,14.70024267,4486.9,4486.8,0.001]
[1758395986484,14.65024267,4486.9,4486.8,0.001]
[1758395986670,14.65024267,4486.9,4486.8,0.2457]
[1758395987024,14.65024267,4486.9,4486.8,0.001]
[1758395987182,14.87674267,4486.9,4486.8,0.001]
[1758395988431,14.65024267,4486.9,4486.8,0.001]
[1758395989098,14.87674267,4486.9,4486.8,0.001]
[1758395991433,14.65024267,4486.9,4486.8,0.001]
[1758395991797,19.60317519,4486.9,4486.8,0.001]
[1758395991997,19.60317519,4486.9,4486.8,0.2457]
[1758395992395,19.60317519,4486.9,4486.8,0.001]
[1758395992699,19.60317519,4486.9,4486.8,0.2457]
[1758395992904,19.60317519,4486.9,4486.8,0.001]
[1758395993903,19.60517519,4486.9,4486.8,0.001]
[1758396000235,19.60598645,4486.9,4486.8,0.001]
[1758396002573,10.96005393,4486.9,4486.8,0.001]
[1758396002776,8.2951427,4486.9,4486.8,1.0377]
[1758396002978,14.21785294,4486.9,4486.8,0.001]
[1758396003159,14.45165294,4486.9,4486.8,0.001]
[1758396003908,14.45166098,4486.9,4486.8,0.001]
[1758396007101,14.21786098,4486.9,4486.8,0.001]
[1758396008725,0.21104139,4486.9,4486.8,8.21839243]
[1758396009021,0.002,4487.4,4486.9,0.792]
[1758396009176,0.002,4487.4,4487.3,5.74493252]
[1758396009372,0.002,4487.4,4487.3,7.97344409]
[1758396009619,0.002,4487.4,4487.3,8.21714409]
[1758396011024,0.002,4487.4,4487.3,11.91914409]
[1758396017005,0.002,4487.4,4487.3,12.36167747]
[1758396017206,0.002,4487.4,4487.3,14.08233424]
[1758396024473,0.002,4487.4,4487.3,10.38033424]
[1758396024685,0.002,4487.4,4487.3,14.07933424]
[1758396027593,0.002,4487.4,4487.3,10.38033424]
[1758396027790,0.002,4487.4,4487.3,14.07833424]
[1758396031756,0.002,4487.4,4487.3,13.83463424]
[1758396032171,0.002,4487.4,4487.3,14.07193424]
[1758396036976,0.002,4487.4,4487.3,10.37393424]
[1758396037310,0.002,4487.4,4487.3,14.07093424]
[1758396038006,0.002,4487.4,4487.3,13.83363424]
[1758396038580,0.002,4487.4,4487.3,14.07093424]
[1758396044122,0.002,4487.4,4487.3,13.83363424]
[1758396045516,0.2327,4487.7,4487.3,13.83363424]
[1758396045517,0.02500047,4488.9,4487.4,0.792]
[1758396045824,0.02500047,4488.9,4488.8,7.9726994]
[1758396045825,0.01,4488.9,4488.8,7.9726994]
[1758396045996,0.01,4488.9,4488.8,11.6676994]
[1758396046198,0.2427,4488.9,4488.8,11.6676994]
[1758396049436,0.2427,4488.9,4488.8,6.71476688]
[1758396050498,0.01,4488.9,4488.8,6.71476688]
[1758396050900,0.2427,4488.9,4488.8,0.792]
[1758396051101,0.2427,4488.9,4488.8,6.71676688]
[1758396051307,0.2427,4488.9,4488.8,6.71576688]
[1758396054944,0.2427,4488.9,4488.8,3.01976688]
[1758396055108,0.2427,4488.9,4488.8,6.71576688]
[1758396058566,0.2427,4488.9,4488.8,3.01976688]
[1758396058866,0.2427,4488.9,4488.8,6.71476688]
[1758396060980,0.2427,4488.9,4488.8,3.01976688]
[1758396061136,0.01,4488.9,4488.8,6.71476688]
[1758396061465,0.01,4488.9,4488.8,6.94666688]
[1758396064676,0.012,4488.9,4488.8,6.94666688]
[1758396065993,0.20970047,4489.3,4489.2,3.01956838]
[1758396066191,1.19841298,4489.4,4489.3,0.792]
[1758396068058,1.44771298,4489.4,4489.3,0.792]
[1758396068380,1.44771298,4489.4,4489.3,3.01951876]
[1758396068793,1.44771298,4489.4,4489.3,0.792]
[1758396070656,1.44771298,4489.4,4489.3,3.01951876]
[1758396070864,1.44771298,4489.4,4489.3,0.792]
[1758396071821,1.59248428,4489.4,4489.3,0.792]
[1758396072583,1.59248428,4489.4,4489.3,3.01951876]
[1758396073920,1.59248428,4489.4,4489.3,0.792]
[1758396074786,1.06122006,4489.4,4489.3,0.792]
[1758396075586,1.06122006,4489.4,4489.3,3.01951876]
[1758396076220,1.06122006,4489.4,4489.3,0.792]
[1758396076610,1.06122006,4489.4,4489.3,3.01951876]
[1758396079339,0.91644876,4489.4,4489.3,3.01951876]
[1758396079540,0.66714876,4489.4,4489.3,3.01951876]
[1758396082210,0.91164876,4489.4,4489.3,0.792]
[1758396082745,0.66714876,4489.4,4489.3,3.01951876]
[1758396083407,0.66714876,4489.4,4489.3,3.02051876]
[1758396086877,0.66714876,4489.4,4489.3,0.793]
[1758396087386,0.66714876,4489.4,4489.3,3.02051876]
[1758396088672,0.66714876,4489.4,4489.3,3.24661876]
[1758396089775,0.002,4489.4,4489.3,7.85634203]
[1758396095295,0.002,4489.4,4489.3,4.16334203]
[1758396095495,0.002,4489.4,4489.3,7.87861721]
[1758396095697,0.002,4489.4,4489.3,7.85634203]
[1758396109656,0.002,4489.4,4489.3,4.16334203]
[1758396109833,0.002,4489.4,4489.3,7.85534203]
[1758396113069,0.002,4489.4,4489.3,3.93724203]
[1758396113236,0.002,4489.4,4489.3,3.02051876]
[1758396113432,0.002,4489.4,4489.3,6.71251876]
[1758396123565,0.002,4489.4,4489.3,3.02051876]
[1758396123750,0.002,4489.4,4489.3,6.71251876]
[1758396156056,0.002,4489.4,4489.3,3.02051876]
[1758396156217,0.24,4489.4,4489.3,0.001]
[1758396157730,0.4867381,4489.4,4489.3,0.001]
[1758396160356,0.2487381,4489.4,4489.3,0.001]
[1758396160534,0.24,4489.4,4489.3,0.001]
[1758396177558,0.002,4489.4,4489.3,0.001]
[1758396177775,0.002,4489.4,4489.3,3.02051876]
[1758396177986,0.002,4489.4,4489.3,3.28329394]
[1758396181541,0.002,4489.4,4489.3,3.26101876]
[1758396182547,0.002,4489.4,4489.3,4.17927916]
[1758396183471,0.002,4489.4,4489.3,4.18177916]
[1758396184071,0.002,4489.4,4489.3,3.93877916]
[1758396184267,0.002,4489.4,4489.3,3.02051876]
[1758396187853,0.002,4489.4,4489.3,3.26351876]
[1758396193681,0.002,4489.4,4489.3,6.95651876]
[1758396203497,0.002,4490.3,4490.2,3.01907229]
[1758396203658,0.002,4490.3,4490.2,7.27915024]
[1758396203858,0.002,4490.3,4490.2,13.37762685]
[1758396204272,0.002,4490.3,4490.2,13.62122685]
[1758396204593,0.002,4490.3,4490.2,13.62422685]
[1758396205297,0.01,4490.9,4490.3,0.792]
[1758396205298,1e-08,4490.9,4490.3,0.792]
[1758396205493,1e-08,4490.9,4490.8,6.91274733]
[1758396205673,1e-08,4490.9,4490.8,10.62474733]
[1758396205872,1e-08,4490.9,4490.8,10.85164733]
[1758396206064,1e-08,4490.9,4490.8,13.07842206]
[1758396206660,1e-08,4490.9,4490.8,9.36642206]
[1758396206863,1e-08,4490.9,4490.8,14.26311166]
[1758396207478,1e-08,4490.9,4490.8,4.20246433]
[1758396207681,1e-08,4490.9,4490.8,6.73077473]
[1758396207893,1e-08,4490.9,4490.8,6.95767473]
[1758396208112,0.00200001,4490.9,4490.8,6.95867473]
[1758396208312,0.00200001,4490.9,4490.8,3.01877473]
[1758396208480,0.00200001,4490.9,4490.8,6.73177473]
[1758396208677,0.00200001,4490.9,4490.8,7.65032959]
[1758396212777,0.00200001,4490.9,4490.8,3.93732959]
[1758396212977,0.24560001,4490.9,4490.8,7.64832959]
[1758396213390,0.00200001,4490.9,4490.8,7.64832959]
[1758396214603,0.00200001,4490.9,4490.8,3.93732959]
[1758396214802,0.00200001,4490.9,4490.8,7.64832959]
[1758396218020,0.00200001,4490.9,4490.8,7.64732959]
[1758396218383,0.00200001,4490.9,4490.8,13.76807692]
[1758396218589,0.00200001,4490.9,4490.8,13.99497692]
[1758396218789,0.00200001,4490.9,4490.8,7.65132959]
[1758396219018,0.00200001,4490.9,4490.8,7.87822959]
[1758396225123,0.00200001,4490.9,4490.8,4.16422959]
[1758396225325,0.00200001,4490.9,4490.8,4.18649733]
[1758396225644,0.00200001,4490.9,4490.8,7.90042959]
[1758396227909,0.00200001,4490.9,4490.8,4.18442959]
[1758396228104,0.00200001,4490.9,4490.8,7.90442959]
[1758396237825,0.00200001,4490.9,4490.8,12.8438539]
[1758396240650,0.00200001,4490.9,4490.8,9.1238539]
[1758396240856,0.00200001,4490.9,4490.8,12.5927539]
[1758396241055,0.00200001,4490.9,4490.8,12.8398539]
[1758396241368,0.00200001,4490.9,4490.8,12.8388539]
[1758396241650,0.00200001,4490.9,4490.8,9.1238539]
[1758396241857,0.00200001,4490.9,4490.8,12.8388539]
[1758396242019,0.00200001,4490.9,4490.8,14.7638539]
[1758396242652,0.00200001,4490.9,4490.8,14.5167539]
[1758396242855,0.00200001,4490.9,4490.8,14.7638539]
[1758396243055,1e-08,4491.4,4491.1,2.22662599]
[1758396243247,1e-08,4491.4,4491.3,7.95795115]
[1758396243722,1e-08,4491.4,4491.3,8.20625115]
[1758396244925,1e-08,4491.4,4491.3,11.67495115]
[1758396245331,1e-08,4491.4,4491.3,11.92325115]
[1758396245643,1e-08,4491.4,4491.3,13.33823886]
[1758396248866,1e-08,4491.4,4491.3,9.62123886]
[1758396249071,1e-08,4491.4,4491.3,13.33723886]
[1758396249745,1e-08,4491.4,4491.3,13.08893886]
[1758396249951,1e-08,4491.4,4491.3,13.33723886]
[1758396250582,1e-08,4491.4,4491.3,13.08893886]
[1758396252160,1e-08,4491.4,4491.3,13.33723886]
[1758396261799,1e-08,4491.4,4491.3,9.37293886]
[1758396261971,1e-08,4491.4,4491.3,13.08493886]
[1758396262172,1e-08,4491.4,4491.3,13.32463886]
[1758396268689,1e-08,4491.4,4491.3,9.37293886]
[1758396268924,0.23720001,4491.4,4491.3,9.37293886]
[1758396269290,0.23720001,4491.4,4491.3,13.08193886]
[1758396270094,0.012,4491.9,4491.8,0.792]
[1758396270318,0.012,4491.9,4491.8,11.6667033]
[1758396271205,0.012,4491.9,4491.8,6.72727899]
[1758396271406,0.012,4491.9,4491.8,11.6667033]
[1758396272707,1e-08,4491.9,4491.8,13.05601144]
[1758396273138,1e-08,4491.9,4491.8,13.29571144]
[1758396277654,1e-08,4491.9,4491.8,13.05601144]
[1758396278012,1e-08,4491.9,4491.8,13.05501144]
[1758396283646,1e-08,4491.9,4491.8,13.05301144]
[1758396287847,1e-08,4491.9,4491.8,9.34701144]
[1758396288051,1e-08,4491.9,4491.8,13.05201144]
[1758396290437,1e-08,4491.9,4491.8,8.11258713]
[1758396290675,1e-08,4491.9,4491.8,13.05201144]
[1758396291787,1e-08,4491.9,4491.8,13.05101144]
[1758396294182,1e-08,4491.9,4491.8,9.34701144]
[1758396294340,1e-08,4491.9,4491.8,13.05101144]
[1758396297155,1e-08,4491.9,4491.8,13.05201144]
[1758396297678,1e-08,4491.9,4491.8,3.01927899]
[1758396297985,0.17820001,4491.9,4491.8,6.72327899]
[1758396298556,0.17820001,4491.9,4491.8,3.01927899]
[1758396298757,0.17820001,4491.9,4491.8,6.72227899]
[1758396299078,0.17820001,4491.9,4491.8,5.93027899]
[1758396299246,0.17820001,4491.9,4491.8,6.72227899]
[1758396301689,0.17820001,4491.9,4491.8,0.001]
[1758396302445,0.78557632,4491.9,4491.8,0.001]
[1758396312239,3.78557632,4491.9,4491.8,0.001]
[1758396312704,3.01180575,4491.9,4491.8,0.001]
[1758396313040,0.78557632,4491.9,4491.8,0.001]
[1758396317309,3.78557632,4491.9,4491.8,0.001]
[1758396317813,0.78557632,4491.9,4491.8,0.001]
[1758396319244,3.01180575,4491.9,4491.8,0.001]
[1758396319415,3.78557632,4491.9,4491.8,0.001]
[1758396320640,0.60737632,4491.9,4491.8,0.001]
[1758396320934,3.60737632,4491.9,4491.8,0.001]
[1758396321853,2.83360575,4491.9,4491.8,0.001]
[1758396323657,3.60737632,4491.9,4491.8,0.001]
[1758396324421,4.30837632,4491.9,4491.8,0.001]
[1758396328567,4.30837632,4491.9,4491.8,0.793]
[1758396334149,7.30837632,4491.9,4491.8,0.793]
[1758396336585,7.30837632,4491.9,4491.8,3.01927899]
[1758396336586,3.00000001,4491.9,4491.8,3.01927899]
[1758396336746,3.00000001,4491.9,4491.8,1.0317]
[1758396336952,3.00000001,4491.9,4491.8,3.25797899]
[1758396337251,3.00000001,4491.9,4491.8,1.0317]
[1758396337780,3.00000001,4491.9,4491.8,3.25797899]
[1758396340240,3.00000001,4491.9,4491.8,1.0317]
[1758396341138,3.00000001,4491.9,4491.8,3.25797899]
[1758396354518,3.00000001,4491.9,4491.8,3.01927899]
[1758396354714,3.00000001,4491.9,4491.8,0.793]
[1758396355221,3.00000001,4491.9,4491.8,3.01927899]
[1758396355719,3.00000001,4491.9,4491.8,0.793]
[1758396364808,3.17820001,4491.9,4491.8,0.793]
[1758396365016,3.00000001,4491.9,4491.8,0.793]
[1758396367967,3.31782001,4491.9,4491.8,0.793]
[1758396368128,3.49602001,4491.9,4491.8,0.793]
[1758396371787,3.31782001,4491.9,4491.8,0.001]
[1758396371993,3.49602001,4491.9,4491.8,0.001]
[1758396372285,3.31782001,4491.9,4491.8,0.001]
[1758396376419,3.98296877,4491.9,4491.8,0.001]
[1758396401040,6.2091982,4491.9,4491.8,0.001]
[1758396401881,3.98296877,4491.9,4491.8,0.001]
[1758396407957,6.2091982,4491.9,4491.8,0.001]
[1758396410312,3.98296877,4491.9,4491.8,0.001]
[1758396412524,3.66514877,4491.9,4491.8,0.001]
[1758396419320,5.8913782,4491.9,4491.8,0.001]
[1758396421447,3.66514877,4491.9,4491.8,0.001]
[1758396428095,5.8913782,4491.9,4491.8,0.001]
[1758396438785,6.0695782,4491.9,4491.8,0.001]
[1758396439211,5.8913782,4491.9,4491.8,0.001]
[1758396440203,6.27848174,4491.9,4491.8,0.001]
[1758396442832,6.10028174,4491.9,4491.8,0.001]
[1758396443295,6.27848174,4491.9,4491.8,0.001]
[1758396444735,6.10028174,4491.9,4491.8,0.001]
[1758396445606,6.27848174,4491.9,4491.8,0.001]
[1758396447015,6.10028174,4491.9,4491.8,0.001]
[1758396450298,6.27848174,4491.9,4491.8,0.001]
[1758396450622,6.10028174,4491.9,4491.8,0.001]
[1758396452536,8.02628174,4491.9,4491.8,0.001]
[1758396455453,8.02598546,4491.9,4491.8,0.001]
[1758396471668,8.02636037,4491.9,4491.8,0.001]
[1758396490033,8.02636037,4491.9,4491.8,0.2375]
[1758396497022,8.02636037,4491.9,4491.8,0.001]
[1758396501986,3.87413094,4491.9,4491.8,0.001]
[1758396502171,0.66514877,4491.9,4491.8,5.97312799]
[1758396502480,0.66514877,4491.9,4491.8,8.79894621]
[1758396502481,1e-08,4491.9,4491.8,8.79894621]
[1758396504284,1e-08,4491.9,4491.8,3.85711822]
[1758396508059,1e-08,4491.9,4491.8,8.79894621]
[1758396512754,1e-08,4491.9,4491.8,12.50794621]
[1758396532149,1e-08,4491.9,4491.8,3.61881822]
[1758396532353,1e-08,4491.9,4491.8,12.28690899]
[1758396532560,1e-08,4491.9,4491.8,12.26464621]
[1758396533154,1e-08,4491.9,4491.8,12.50474621]
[1758396535268,1e-08,4491.9,4491.8,8.80074621]
[1758396535467,1e-08,4491.9,4491.8,12.50374621]
[1758396540492,1e-08,4491.9,4491.8,1.39253923]
[1758396540793,0.17820001,4491.9,4491.8,3.01927899]
[1758396542385,1e-08,4491.9,4491.8,3.01927899]
[1758396542567,1e-08,4491.9,4491.8,6.72227899]
[1758396544595,1e-08,4491.9,4491.1,5.18192799]
[1758396544596,6.550028,4491.9,4490.9,0.001]
[1758396544797,6.550028,4491.9,4490.4,0.001]
[1758396544798,2.2269235,4490.5,4490.4,0.001]
[1758396544999,18.13457688,4490.5,4490.4,0.001]
[1758396545192,18.52155354,4490.5,4490.4,0.001]
[1758396545559,17.96608336,4490.5,4490.4,0.001]
[1758396545790,13.02425537,4490.5,4490.4,0.001]
[1758396546373,12.81547871,4490.5,4490.4,0.001]
[1758396547321,18.93483031,4490.5,4490.4,0.001]
[1758396547525,18.12788168,4490.5,4490.4,0.001]
[1758396550079,8.28453008,4490.5,4490.4,0.001]
[1758396550321,12.00953008,4490.5,4490.4,0.001]
[1758396557655,12.37877105,4490.5,4490.4,0.001]
[1758396559244,12.00953008,4490.5,4490.4,0.001]
[1758396560361,12.67467884,4490.5,4490.4,0.001]
[1758396565244,12.88188859,4490.5,4490.4,0.001]
[1758396567290,12.70368859,4490.5,4490.4,0.001]
[1758396574982,5.22697309,4490.4,4490.1,0.01]
[1758396575188,5.99046125,4490.4,4490.1,0.01]
[1758396578100,6.65561001,4490.4,4490.1,0.01]
[1758396584912,6.65561001,4490.4,4490.1,0.2375]
[1758396594553,10.36961001,4490.4,4490.1,0.2375]
[1758396600233,10.37161001,4490.4,4490.1,0.2375]
[1758396605130,10.37161001,4490.4,4490.1,0.01]
[1758396605828,10.37330322,4490.4,4490.1,0.01]
[1758396607820,15.31876884,4490.4,4490.1,0.01]
[1758396626161,15.31881633,4490.4,4490.1,0.01]
[1758396628183,15.31892003,4490.4,4490.1,0.01]
[1758396632092,10.37345441,4490.4,4490.1,0.01]
[1758396632293,6.65945441,4490.4,4490.3,0.2284]
[1758396632494,10.36445441,4490.4,4490.3,0.2284]
[1758396632705,6.65945441,4490.4,4490.3,0.2284]
[1758396632905,10.36445441,4490.4,4490.3,0.2284]
[1758396633690,6.65945441,4490.4,4490.3,0.2284]
[1758396633854,10.36445441,4490.4,4490.3,0.2284]
[1758396634598,1.43248132,4490.4,4490.3,0.2284]
[1758396634903,5.13748132,4490.4,4490.3,0.2284]
[1758396635209,5.13748132,4490.4,4490.3,1.0204]
[1758396635354,4.92842717,4490.4,4490.3,1.0204]
[1758396637189,5.13728078,4490.4,4490.3,1.0204]
[1758396637501,4.92842717,4490.4,4490.3,1.0204]
[1758396648810,4.26327841,4490.4,4490.3,1.0204]
[1758396653926,0.55827841,4490.4,4490.3,1.0204]
[1758396654130,4.26027841,4490.4,4490.3,1.0204]
[1758396663682,6.4872515,4490.4,4490.3,0.001]
[1758396663959,6.6654515,4490.4,4490.3,0.001]
[1758396664962,6.4872515,4490.4,4490.3,0.001]
[1758396668869,9.87448302,4490.4,4490.3,0.001]
[1758396673058,10.53963178,4490.4,4490.3,0.001]
[1758396675670,10.36143178,4490.4,4490.3,0.001]
[1758396677625,10.15240026,4490.4,4490.3,0.001]
[1758396677826,10.36128159,4490.4,4490.3,0.001]
[1758396709695,6.65928159,4490.4,4490.3,0.2467]
[1758396709990,10.36028159,4490.4,4490.3,0.2467]
[1758396710711,4.4323085,4490.4,4490.3,0.2467]
[1758396710912,7.57703009,4490.4,4490.3,0.2467]
[1758396711403,7.36814876,4490.4,4490.3,0.2467]
[1758396717409,9.59512185,4490.4,4490.3,0.2467]
[1758396717613,7.36814876,4490.4,4490.3,0.2467]
[1758396718024,9.59512185,4490.4,4490.3,0.2467]
[1758396720039,7.36814876,4490.4,4490.3,0.2467]
[1758396720760,3.703,4490.4,4490.3,3.26572269]
[1758396721045,0.002,4490.4,4490.3,4.45237648]
[1758396721218,0.002,4490.4,4490.3,4.43010626]
[1758396728426,0.002,4490.4,4490.3,2.20308357]
[1758396728828,0.002,4490.4,4490.3,0.793]
[1758396729338,0.002,4490.4,4490.3,1.0299]
[1758396729726,0.002,4490.4,4490.3,3.25692269]
[1758396733536,0.002,4490.4,4490.3,3.27919291]
[1758396734866,0.002,4490.4,4490.3,3.25692269]
[1758396735046,0.002,4490.4,4490.3,4.73747853]
[1758396737484,0.002,4490.4,4490.3,8.43747853]
[1758396749358,0.002,4490.4,4490.3,4.50057853]
[1758396749549,0.002,4490.4,4490.3,8.42877853]
[1758396763118,0.002,4490.4,4490.3,0.001]
[1758396763417,0.1802,4490.4,4490.3,0.001]
[1758396763771,0.002,4490.4,4490.3,0.793]
[1758396765007,0.002,4490.4,4490.3,3.02002269]
[1758396765221,0.002,4490.4,4490.3,0.793]
[1758396766525,0.002,4490.4,4490.3,3.02002269]
[1758396766731,0.002,4490.4,4490.3,0.793]
[1758396767433,0.002,4490.4,4490.3,3.02002269]
[1758396771744,0.002,4490.4,4490.3,3.04229291]
[1758396771895,0.002,4490.4,4490.3,3.27159291]
[1758396773142,0.002,4490.4,4490.3,8.21362075]
[1758396773297,0.002,4490.4,4490.3,8.19135053]
[1758396782163,0.002,4490.4,4490.3,9.60409744]
[1758396789271,0.002,4490.4,4490.3,10.04490816]
[1758396791974,0.002,4490.4,4490.3,11.21691089]
[1758396795557,0.002,4490.4,4490.3,10.98761089]
[1758396795738,0.002,4490.4,4490.3,11.22541089]
[1758396796180,0.002,4490.4,4490.3,10.98761089]
[1758396796482,0.002,4490.4,4490.3,11.22541089]
[1758396796899,0.002,4490.4,4490.3,10.98761089]
[1758396798004,0.002,4490.4,4490.3,11.22541089]
[1758396798209,0.002,4490.4,4490.3,4.4327696]
[1758396798380,0.002,4490.4,4490.3,6.71802269]
[1758396798567,0.1802,4490.4,4490.3,6.71802269]
[1758396798771,0.002,4490.4,4490.3,6.71802269]
[1758396804683,0.002,4490.4,4490.3,6.71702269]
[1758396809908,0.002,4490.4,4490.3,6.95482269]
[1758396810401,0.002,4490.4,4490.3,8.52908371]
[1758396814398,0.002,4490.4,4490.3,8.29128371]
[1758396816074,0.002,4490.4,4490.3,8.52908371]
[1758396817815,0.002,4490.4,4490.3,8.29128371]